[Event "Titled Tuesday Blitz March 15 Late 2022"]
[White "Le Goff, Ronan"]
[Black "Golubev, Mikhail"]
[WhiteFideId "612073"]
[BlackFideId "14100983"]
[WhiteElo "2276"]
[BlackElo "2374"]
[Result "1/2-1/2"]
[Round "05"]
[TimeControl "180+1"]
[Date "2022.03.16"]
[WhiteClock "0:00:34"]
[BlackClock "0:00:05"]

1. d4 {[%clk 0:02:41]}  Nf6 {[%clk 0:02:58]} 2. Nf3 {[%clk 0:02:41]}  d6 {[%clk 0:02:57]} 3. Nc3 {[%clk 0:02:40]}  Nbd7 {[%clk 0:02:54]} 4. e4 {[%clk 0:02:40]}  e5 {[%clk 0:02:54]} 5. Bc4 {[%clk 0:02:38]}  Be7 {[%clk 0:02:53]} 6. a4 {[%clk 0:02:38]}  O-O {[%clk 0:02:52]} 7. a5 {[%clk 0:02:39]}  c6 {[%clk 0:02:45]} 8. O-O {[%clk 0:02:38]}  Rb8 {[%clk 0:02:39]} 9. h3 {[%clk 0:02:36]}  b5 {[%clk 0:02:36]} 10. axb6 {[%clk 0:02:36]}  axb6 {[%clk 0:02:36]} 11. dxe5 {[%clk 0:02:35]}  dxe5 {[%clk 0:02:30]} 12. Qe2 {[%clk 0:02:26]}  b5 {[%clk 0:02:28]} 13. Bb3 {[%clk 0:02:26]}  Qc7 {[%clk 0:02:17]} 14. Bg5 {[%clk 0:02:22]}  h6 {[%clk 0:02:12]} 15. Bxf6 {[%clk 0:02:20]}  Bxf6 {[%clk 0:02:06]} 16. Qe3 {[%clk 0:02:17]}  Qb6 {[%clk 0:01:58]} 17. Qxb6 {[%clk 0:02:15]}  Rxb6 {[%clk 0:01:58]} 18. Ra7 {[%clk 0:02:14]}  Nc5 {[%clk 0:01:53]} 19. Nd2 {[%clk 0:02:13]}  Bg5 {[%clk 0:01:41]} 20. Rd1 {[%clk 0:02:03]}  b4 {[%clk 0:01:31]} 21. Ncb1 {[%clk 0:01:37]}  Nxb3 {[%clk 0:01:10]} 22. Nxb3 {[%clk 0:01:34]}  Rb5 {[%clk 0:01:02]} 23. Rd6 {[%clk 0:01:27]}  Be6 {[%clk 0:00:34]} 24. N1d2 {[%clk 0:01:17]}  c5 {[%clk 0:00:30]} 25. Nf3 {[%clk 0:01:16]}  Bf6 {[%clk 0:00:14]} 26. Rc6 {[%clk 0:01:13]}  c4 {[%clk 0:00:13]} 27. Nc5 {[%clk 0:01:13]}  Rc8 {[%clk 0:00:10]} 28. Rxc8+ {[%clk 0:01:09]}  Bxc8 {[%clk 0:00:08]} 29. Rc7 {[%clk 0:01:07]}  Rb8 {[%clk 0:00:07]} 30. Nd7 {[%clk 0:01:02]}  Bd8 {[%clk 0:00:06]} 31. Ra7 {[%clk 0:00:55]}  Rb7 {[%clk 0:00:06]} 32. Rxb7 {[%clk 0:00:51]}  Bxb7 {[%clk 0:00:04]} 33. Ndxe5 {[%clk 0:00:51]}  Bxe4 {[%clk 0:00:03]} 34. Nxc4 {[%clk 0:00:49]}  Bxc2 {[%clk 0:00:03]} 35. Ne3 {[%clk 0:00:49]}  b3 {[%clk 0:00:02]} 36. Nd4 {[%clk 0:00:48]}  Bf6 {[%clk 0:00:02]} 37. Ndxc2 {[%clk 0:00:45]}  bxc2 {[%clk 0:00:03]} 38. Nxc2 {[%clk 0:00:46]}  Bxb2 {[%clk 0:00:02]} 39. Ne3 {[%clk 0:00:47]}  Bf6 {[%clk 0:00:02]} 40. Nd5 {[%clk 0:00:47]}  Bd8 {[%clk 0:00:03]} 41. g3 {[%clk 0:00:48]}  f6 {[%clk 0:00:03]} 42. Kg2 {[%clk 0:00:48]}  Kf7 {[%clk 0:00:03]} 43. Kf3 {[%clk 0:00:49]}  f5 {[%clk 0:00:04]} 44. h4 {[%clk 0:00:46]}  g6 {[%clk 0:00:04]} 45. Nf4 {[%clk 0:00:45]}  h5 {[%clk 0:00:04]} 46. Nd5 {[%clk 0:00:44]}  Ke6 {[%clk 0:00:04]} 47. Nf4+ {[%clk 0:00:44]}  Kf7 {[%clk 0:00:04]} 48. Nd3 {[%clk 0:00:44]}  Bc7 {[%clk 0:00:04]} 49. Ke2 {[%clk 0:00:43]}  Bd6 {[%clk 0:00:05]} 50. Nb2 {[%clk 0:00:43]}  Ke6 {[%clk 0:00:05]} 51. Nc4 {[%clk 0:00:43]}  Bc7 {[%clk 0:00:05]} 52. Kd3 {[%clk 0:00:44]}  Kd5 {[%clk 0:00:06]} 53. Ne3+ {[%clk 0:00:43]}  Ke6 {[%clk 0:00:05]} 54. Kc4 {[%clk 0:00:43]}  Bb6 {[%clk 0:00:05]} 55. Nd1 {[%clk 0:00:43]}  Ba7 {[%clk 0:00:04]} 56. f3 {[%clk 0:00:43]}  Ke5 {[%clk 0:00:04]} 57. Kd3 {[%clk 0:00:40]}  f4 {[%clk 0:00:04]} 58. g4 {[%clk 0:00:40]}  hxg4 {[%clk 0:00:03]} 59. fxg4 {[%clk 0:00:41]}  f3 {[%clk 0:00:04]} 60. h5 {[%clk 0:00:40]}  gxh5 {[%clk 0:00:04]} 61. gxh5 {[%clk 0:00:41]}  Kf5 {[%clk 0:00:05]} 62. Nc3 {[%clk 0:00:38]}  Kg5 {[%clk 0:00:04]} 63. Ne4+ {[%clk 0:00:35]}  Kxh5 {[%clk 0:00:05]} 64. Nd2 {[%clk 0:00:34]}  Kg4 {[%clk 0:00:05]} 65. Nxf3 {[%clk 0:00:34]} 1/2-1/2


[Site "https://www.chess.com"]

[Event "Titled Tuesday Blitz March 15 Late 2022"]
[White "Lewicki, Miroslaw"]
[Black "Babazada, Khazar"]
[WhiteFideId "1113380"]
[BlackFideId "13413554"]
[WhiteElo "2283"]
[BlackElo "2418"]
[Result "0-1"]
[Round "05"]
[TimeControl "180+1"]
[Date "2022.03.15"]
[WhiteClock "0:00:01"]
[BlackClock "0:00:10"]

1. g3 {[%clk 0:03:00]}  Nf6 {[%clk 0:03:00]} 2. Bg2 {[%clk 0:02:59]}  g6 {[%clk 0:03:01]} 3. Nf3 {[%clk 0:03:00]}  Bg7 {[%clk 0:03:01]} 4. O-O {[%clk 0:03:00]}  b6 {[%clk 0:03:02]} 5. c4 {[%clk 0:03:01]}  Bb7 {[%clk 0:03:02]} 6. d4 {[%clk 0:03:01]}  Kf8 {[%clk 0:03:01]} 7. Nc3 {[%clk 0:02:56]}  d6 {[%clk 0:02:59]} 8. Re1 {[%clk 0:02:56]}  Nbd7 {[%clk 0:02:55]} 9. e4 {[%clk 0:02:53]}  e5 {[%clk 0:02:55]} 10. dxe5 {[%clk 0:02:51]}  dxe5 {[%clk 0:02:53]} 11. Qc2 {[%clk 0:02:48]}  Kg8 {[%clk 0:02:50]} 12. b3 {[%clk 0:02:40]}  h6 {[%clk 0:02:49]} 13. Bb2 {[%clk 0:02:40]}  Kh7 {[%clk 0:02:49]} 14. Rad1 {[%clk 0:02:41]}  Qc8 {[%clk 0:02:31]} 15. Bh3 {[%clk 0:02:37]}  Re8 {[%clk 0:02:19]} 16. Re2 {[%clk 0:01:45]}  Bc6 {[%clk 0:02:15]} 17. Red2 {[%clk 0:01:41]}  a5 {[%clk 0:02:00]} 18. Nb5 {[%clk 0:01:32]}  Bxe4 {[%clk 0:01:32]} 19. Qc3 {[%clk 0:01:28]}  Bf5 {[%clk 0:01:26]} 20. Bxf5 {[%clk 0:01:10]}  gxf5 {[%clk 0:01:27]} 21. Nh4 {[%clk 0:01:06]}  Ne4 {[%clk 0:01:05]} 22. Qf3 {[%clk 0:01:05]}  Nxd2 {[%clk 0:01:06]} 23. Rxd2 {[%clk 0:00:57]}  Nf8 {[%clk 0:00:53]} 24. Nxf5 {[%clk 0:00:52]}  Ng6 {[%clk 0:00:53]} 25. h4 {[%clk 0:00:40]}  Rb8 {[%clk 0:00:44]} 26. h5 {[%clk 0:00:19]}  Nf8 {[%clk 0:00:44]} 27. Qe4 {[%clk 0:00:14]}  Qb7 {[%clk 0:00:41]} 28. Rd5 {[%clk 0:00:12]}  Kh8 {[%clk 0:00:34]} 29. Nxg7 {[%clk 0:00:11]}  Kxg7 {[%clk 0:00:25]} 30. Bxe5+ {[%clk 0:00:11]}  f6 {[%clk 0:00:22]} 31. Qg4+ {[%clk 0:00:04]}  Kf7 {[%clk 0:00:22]} 32. Bf4 {[%clk 0:00:03]}  Qc8 {[%clk 0:00:20]} 33. Qf3 {[%clk 0:00:02]}  Qh3 {[%clk 0:00:18]} 34. Be3 {[%clk 0:00:01]}  Nd7 {[%clk 0:00:15]} 35. Nxc7 {[%clk 0:00:01]}  Ne5 {[%clk 0:00:16]} 36. Qe4 {[%clk 0:00:01]}  f5 {[%clk 0:00:11]} 37. Qd4 {[%clk 0:00:01]}  Nf3# {[%clk 0:00:10]} 0-1


[Site "https://www.chess.com"]

[Event "Titled Tuesday Blitz March 15 Late 2022"]
[White "Mangialardo, Tiago Carvalho"]
[Black "Ladan, Nicholas"]
[WhiteFideId "2130718"]
[BlackFideId "30918855"]
[WhiteElo "2082"]
[BlackElo "2167"]
[Result "0-1"]
[Round "05"]
[TimeControl "180+1"]
[Date "2022.03.16"]
[WhiteClock "0:00:05"]
[BlackClock "0:01:20"]

1. e4 {[%clk 0:02:50]}  e5 {[%clk 0:03:00]} 2. Nf3 {[%clk 0:02:49]}  Nc6 {[%clk 0:03:00]} 3. Bb5 {[%clk 0:02:48]}  a6 {[%clk 0:03:00]} 4. Ba4 {[%clk 0:02:48]}  g6 {[%clk 0:03:00]} 5. d4 {[%clk 0:02:41]}  exd4 {[%clk 0:03:00]} 6. Nxd4 {[%clk 0:02:39]}  b5 {[%clk 0:02:58]} 7. Nxc6 {[%clk 0:02:37]}  dxc6 {[%clk 0:02:58]} 8. Qxd8+ {[%clk 0:02:37]}  Kxd8 {[%clk 0:02:58]} 9. Bb3 {[%clk 0:02:37]}  Ke8 {[%clk 0:02:59]} 10. Bf4 {[%clk 0:02:30]}  Bd6 {[%clk 0:02:52]} 11. e5 {[%clk 0:02:29]}  Bc5 {[%clk 0:02:48]} 12. Nd2 {[%clk 0:02:26]}  Bf5 {[%clk 0:02:47]} 13. h3 {[%clk 0:02:23]}  h5 {[%clk 0:02:46]} 14. g3 {[%clk 0:02:18]}  Ne7 {[%clk 0:02:44]} 15. f3 {[%clk 0:02:13]}  Nd5 {[%clk 0:02:41]} 16. Bg5 {[%clk 0:02:13]}  Be7 {[%clk 0:02:27]} 17. Bxe7 {[%clk 0:02:00]}  Kxe7 {[%clk 0:02:27]} 18. O-O-O {[%clk 0:01:28]}  a5 {[%clk 0:02:24]} 19. g4 {[%clk 0:01:18]}  Be6 {[%clk 0:02:21]} 20. c4 {[%clk 0:01:10]}  Nb4 {[%clk 0:02:18]} 21. a3 {[%clk 0:01:05]}  Nd3+ {[%clk 0:02:14]} 22. Kc2 {[%clk 0:01:05]}  Nxe5 {[%clk 0:01:46]} 23. Rhe1 {[%clk 0:00:57]}  Nd7 {[%clk 0:01:43]} 24. cxb5 {[%clk 0:00:50]}  cxb5 {[%clk 0:01:42]} 25. Bxe6 {[%clk 0:00:47]}  fxe6 {[%clk 0:01:42]} 26. Ne4 {[%clk 0:00:46]}  hxg4 {[%clk 0:01:32]} 27. hxg4 {[%clk 0:00:33]}  Rh2+ {[%clk 0:01:28]} 28. Kb1 {[%clk 0:00:30]}  b4 {[%clk 0:01:26]} 29. Ng5 {[%clk 0:00:20]}  Ra6 {[%clk 0:01:26]} 30. Rd4 {[%clk 0:00:09]}  bxa3 {[%clk 0:01:23]} 31. Rde4 {[%clk 0:00:06]}  Rxb2+ {[%clk 0:01:19]} 32. Ka1 {[%clk 0:00:05]}  Nc5 {[%clk 0:01:20]} 0-1


[Site "https://www.chess.com"]

[Event "Titled Tuesday Blitz March 15 Late 2022"]
[White "Marson, Juan Miguel"]
[Black "Zhou, Qiyu"]
[WhiteFideId "106585"]
[BlackFideId "505161"]
[WhiteElo "2053"]
[BlackElo "1925"]
[Result "1/2-1/2"]
[Round "05"]
[TimeControl "180+1"]
[Date "2022.03.16"]
[WhiteClock "0:00:17"]
[BlackClock "0:00:12"]

1. e4 {[%clk 0:02:54]}  e5 {[%clk 0:02:58]} 2. Nf3 {[%clk 0:02:54]}  Nc6 {[%clk 0:02:57]} 3. Bb5 {[%clk 0:02:54]}  a6 {[%clk 0:02:57]} 4. Ba4 {[%clk 0:02:54]}  Bc5 {[%clk 0:02:57]} 5. O-O {[%clk 0:02:47]}  b5 {[%clk 0:02:56]} 6. Bb3 {[%clk 0:02:47]}  Nf6 {[%clk 0:02:56]} 7. d3 {[%clk 0:02:46]}  O-O {[%clk 0:02:54]} 8. c3 {[%clk 0:02:45]}  Bb6 {[%clk 0:02:52]} 9. h3 {[%clk 0:02:42]}  d6 {[%clk 0:02:53]} 10. a4 {[%clk 0:02:41]}  Rb8 {[%clk 0:02:50]} 11. Nbd2 {[%clk 0:02:39]}  h6 {[%clk 0:02:49]} 12. Re1 {[%clk 0:02:32]}  Kh7 {[%clk 0:02:45]} 13. Nf1 {[%clk 0:02:30]}  Be6 {[%clk 0:02:43]} 14. Be3 {[%clk 0:02:28]}  Qe7 {[%clk 0:02:40]} 15. Bxb6 {[%clk 0:02:20]}  Rxb6 {[%clk 0:02:40]} 16. Ne3 {[%clk 0:02:20]}  Rfb8 {[%clk 0:02:23]} 17. axb5 {[%clk 0:02:13]}  axb5 {[%clk 0:02:22]} 18. Bd5 {[%clk 0:02:04]}  Nd8 {[%clk 0:02:19]} 19. b4 {[%clk 0:01:58]}  c6 {[%clk 0:02:13]} 20. Bb3 {[%clk 0:01:47]}  R6b7 {[%clk 0:01:56]} 21. Ra6 {[%clk 0:01:35]}  Ra7 {[%clk 0:01:48]} 22. Rxa7 {[%clk 0:01:33]}  Qxa7 {[%clk 0:01:49]} 23. Qc2 {[%clk 0:01:31]}  Ra8 {[%clk 0:01:47]} 24. Bxe6 {[%clk 0:01:27]}  Nxe6 {[%clk 0:01:48]} 25. Nf5 {[%clk 0:01:25]}  Ne8 {[%clk 0:01:42]} 26. d4 {[%clk 0:01:24]}  exd4 {[%clk 0:01:37]} 27. N5xd4 {[%clk 0:01:21]}  Qa2 {[%clk 0:01:13]} 28. Qxa2 {[%clk 0:01:17]}  Rxa2 {[%clk 0:01:14]} 29. Nxc6 {[%clk 0:01:17]}  Rc2 {[%clk 0:01:12]} 30. Re3 {[%clk 0:01:10]}  N8c7 {[%clk 0:00:59]} 31. Ncd4 {[%clk 0:01:06]}  Rc1+ {[%clk 0:00:32]} 32. Re1 {[%clk 0:00:58]}  Nxd4 {[%clk 0:00:27]} 33. cxd4 {[%clk 0:00:51]}  Rc4 {[%clk 0:00:27]} 34. Rb1 {[%clk 0:00:47]}  Ne6 {[%clk 0:00:26]} 35. e5 {[%clk 0:00:41]}  Nxd4 {[%clk 0:00:24]} 36. Nxd4 {[%clk 0:00:30]}  Rxd4 {[%clk 0:00:25]} 37. exd6 {[%clk 0:00:30]}  Rxd6 {[%clk 0:00:26]} 38. Kf1 {[%clk 0:00:31]}  Rd2 {[%clk 0:00:25]} 39. Rb3 {[%clk 0:00:25]}  Kg6 {[%clk 0:00:21]} 40. Rg3+ {[%clk 0:00:26]}  Kf6 {[%clk 0:00:21]} 41. Rf3+ {[%clk 0:00:26]}  Ke6 {[%clk 0:00:21]} 42. Re3+ {[%clk 0:00:22]}  Kf6 {[%clk 0:00:18]} 43. Rc3 {[%clk 0:00:17]}  Rb2 {[%clk 0:00:13]} 44. Rc6+ {[%clk 0:00:17]}  Ke7 {[%clk 0:00:12]} 45. Rc7+ {[%clk 0:00:18]}  Ke8 {[%clk 0:00:11]} 46. Rc8+ {[%clk 0:00:17]}  Ke7 {[%clk 0:00:12]} 47. Rc7+ {[%clk 0:00:17]}  Kf6 {[%clk 0:00:12]} 48. Rc6+ {[%clk 0:00:17]}  Ke7 {[%clk 0:00:12]} 49. Rc7+ {[%clk 0:00:17]} 1/2-1/2


[Site "https://www.chess.com"]

[Event "Titled Tuesday Blitz March 15 Late 2022"]
[White "Matinian, Nikita"]
[Black "Xiong, Jeffery"]
[WhiteFideId "24129100"]
[BlackFideId "2047640"]
[WhiteElo "2422"]
[BlackElo "2727"]
[Result "0-1"]
[Round "05"]
[TimeControl "180+1"]
[Date "2022.03.15"]
[WhiteClock "0:00:03"]
[BlackClock "0:00:26"]

1. e4 {[%clk 0:02:55]}  c6 {[%clk 0:02:59]} 2. Nc3 {[%clk 0:02:54]}  d5 {[%clk 0:02:59]} 3. Nf3 {[%clk 0:02:55]}  g6 {[%clk 0:02:57]} 4. d4 {[%clk 0:02:55]}  Bg7 {[%clk 0:02:58]} 5. Bd3 {[%clk 0:02:55]}  Bg4 {[%clk 0:02:57]} 6. e5 {[%clk 0:02:55]}  Nd7 {[%clk 0:02:54]} 7. h3 {[%clk 0:02:54]}  Bxf3 {[%clk 0:02:55]} 8. Qxf3 {[%clk 0:02:55]}  e6 {[%clk 0:02:56]} 9. Ne2 {[%clk 0:02:52]}  Ne7 {[%clk 0:02:53]} 10. h4 {[%clk 0:02:48]}  h5 {[%clk 0:02:51]} 11. Bg5 {[%clk 0:02:48]}  Qb6 {[%clk 0:02:49]} 12. O-O-O {[%clk 0:02:39]}  c5 {[%clk 0:02:48]} 13. c3 {[%clk 0:02:27]}  Nc6 {[%clk 0:02:47]} 14. Kb1 {[%clk 0:02:13]}  O-O {[%clk 0:02:10]} 15. g4 {[%clk 0:02:11]}  cxd4 {[%clk 0:02:09]} 16. cxd4 {[%clk 0:02:05]}  Nxd4 {[%clk 0:02:10]} 17. Nxd4 {[%clk 0:02:00]}  Qxd4 {[%clk 0:02:11]} 18. gxh5 {[%clk 0:01:46]}  Nxe5 {[%clk 0:02:08]} 19. Qe2 {[%clk 0:01:40]}  Nxd3 {[%clk 0:01:30]} 20. Rxd3 {[%clk 0:01:41]}  Qe4 {[%clk 0:01:31]} 21. Qxe4 {[%clk 0:01:37]}  dxe4 {[%clk 0:01:32]} 22. Rg3 {[%clk 0:01:38]}  Kh7 {[%clk 0:01:27]} 23. hxg6+ {[%clk 0:01:29]}  fxg6 {[%clk 0:01:28]} 24. h5 {[%clk 0:01:25]}  Rxf2 {[%clk 0:01:25]} 25. hxg6+ {[%clk 0:01:24]}  Kg8 {[%clk 0:01:26]} 26. Bc1 {[%clk 0:01:19]}  Rc8 {[%clk 0:01:16]} 27. Re1 {[%clk 0:01:09]}  b6 {[%clk 0:00:44]} 28. a3 {[%clk 0:01:07]}  Bf6 {[%clk 0:00:39]} 29. Rg4 {[%clk 0:01:00]}  Rcc2 {[%clk 0:00:36]} 30. Rgxe4 {[%clk 0:00:50]}  Bxb2 {[%clk 0:00:36]} 31. Be3 {[%clk 0:00:33]}  Rg2 {[%clk 0:00:36]} 32. Rxe6 {[%clk 0:00:29]}  Bc3 {[%clk 0:00:36]} 33. Rf1 {[%clk 0:00:09]}  Rb2+ {[%clk 0:00:35]} 34. Kc1 {[%clk 0:00:09]}  Ra2 {[%clk 0:00:36]} 35. Re8+ {[%clk 0:00:02]}  Kg7 {[%clk 0:00:36]} 36. Re7+ {[%clk 0:00:03]}  Kxg6 {[%clk 0:00:35]} 37. Re6+ {[%clk 0:00:03]}  Kh7 {[%clk 0:00:28]} 38. Re7+ {[%clk 0:00:03]}  Bg7 {[%clk 0:00:26]} 0-1


[Site "https://www.chess.com"]

[Event "Titled Tuesday Blitz March 15 Late 2022"]
[White "Matlakov, Maxim"]
[Black "Lazavik, Denis"]
[WhiteFideId "4168003"]
[BlackFideId "13515110"]
[WhiteElo "2669"]
[BlackElo "2437"]
[Result "1-0"]
[Round "05"]
[TimeControl "180+1"]
[Date "2022.03.15"]
[WhiteClock "0:00:14"]
[BlackClock "0:00:03"]

1. d4 {[%clk 0:02:55]}  d5 {[%clk 0:02:58]} 2. c4 {[%clk 0:02:53]}  c6 {[%clk 0:02:56]} 3. Nf3 {[%clk 0:02:52]}  Nf6 {[%clk 0:02:57]} 4. Qc2 {[%clk 0:02:52]}  g6 {[%clk 0:02:56]} 5. e3 {[%clk 0:02:52]}  Bf5 {[%clk 0:02:52]} 6. Qb3 {[%clk 0:02:48]}  Qb6 {[%clk 0:02:52]} 7. Nc3 {[%clk 0:02:47]}  Bg7 {[%clk 0:02:48]} 8. Be2 {[%clk 0:02:41]}  O-O {[%clk 0:02:45]} 9. O-O {[%clk 0:02:41]}  Nbd7 {[%clk 0:02:39]} 10. h3 {[%clk 0:02:40]}  dxc4 {[%clk 0:02:22]} 11. Bxc4 {[%clk 0:02:35]}  Qxb3 {[%clk 0:02:22]} 12. Bxb3 {[%clk 0:02:33]}  c5 {[%clk 0:02:21]} 13. Rd1 {[%clk 0:02:32]}  Rad8 {[%clk 0:02:02]} 14. g4 {[%clk 0:02:24]}  Be4 {[%clk 0:02:02]} 15. Ng5 {[%clk 0:02:16]}  c4 {[%clk 0:01:32]} 16. Bxc4 {[%clk 0:02:07]}  Bc6 {[%clk 0:01:28]} 17. Nxf7 {[%clk 0:01:29]}  Rxf7 {[%clk 0:01:25]} 18. Bxf7+ {[%clk 0:01:30]}  Kxf7 {[%clk 0:01:26]} 19. d5 {[%clk 0:01:30]}  Nxd5 {[%clk 0:01:15]} 20. Nxd5 {[%clk 0:01:29]}  Nc5 {[%clk 0:00:57]} 21. Nc3 {[%clk 0:01:25]}  Rc8 {[%clk 0:00:58]} 22. f3 {[%clk 0:01:18]}  b5 {[%clk 0:00:40]} 23. e4 {[%clk 0:01:16]}  b4 {[%clk 0:00:40]} 24. Ne2 {[%clk 0:01:06]}  Bb5 {[%clk 0:00:34]} 25. Nd4 {[%clk 0:01:03]}  Bd3 {[%clk 0:00:34]} 26. Be3 {[%clk 0:01:02]}  Rd8 {[%clk 0:00:27]} 27. Rac1 {[%clk 0:01:02]}  Bxd4 {[%clk 0:00:15]} 28. Bxd4 {[%clk 0:01:01]}  Be2 {[%clk 0:00:15]} 29. Rd2 {[%clk 0:00:44]}  Nd3 {[%clk 0:00:15]} 30. Rc7 {[%clk 0:00:28]}  Rxd4 {[%clk 0:00:09]} 31. Rxe2 {[%clk 0:00:29]}  Nf4 {[%clk 0:00:10]} 32. Rec2 {[%clk 0:00:28]}  Nxh3+ {[%clk 0:00:09]} 33. Kg2 {[%clk 0:00:28]}  Nf4+ {[%clk 0:00:10]} 34. Kf2 {[%clk 0:00:28]}  g5 {[%clk 0:00:09]} 35. Rxa7 {[%clk 0:00:28]}  Rd3 {[%clk 0:00:08]} 36. Rb7 {[%clk 0:00:26]}  Rd4 {[%clk 0:00:09]} 37. a4 {[%clk 0:00:24]}  bxa3 {[%clk 0:00:09]} 38. bxa3 {[%clk 0:00:24]}  Ra4 {[%clk 0:00:09]} 39. Ra2 {[%clk 0:00:24]}  Nd3+ {[%clk 0:00:10]} 40. Ke3 {[%clk 0:00:23]}  Ne5 {[%clk 0:00:10]} 41. Rb4 {[%clk 0:00:22]}  Ra6 {[%clk 0:00:08]} 42. a4 {[%clk 0:00:23]}  Rf6 {[%clk 0:00:08]} 43. Rf2 {[%clk 0:00:15]}  Rd6 {[%clk 0:00:08]} 44. Rd4 {[%clk 0:00:15]}  Rb6 {[%clk 0:00:08]} 45. Rd5 {[%clk 0:00:14]}  Rb3+ {[%clk 0:00:08]} 46. Kd4 {[%clk 0:00:14]}  Nxf3+ {[%clk 0:00:03]} 47. Kc4 {[%clk 0:00:14]}  Re3 {[%clk 0:00:03]} 48. Rf5+ {[%clk 0:00:14]} 1-0


[Site "https://www.chess.com"]

[Event "Titled Tuesday Blitz March 15 Late 2022"]
[White "Mikhailov, Viacheslav"]
[Black "Roberson, Peter T"]
[WhiteFideId "4187369"]
[BlackFideId "412384"]
[WhiteElo "2381"]
[BlackElo "2346"]
[Result "0-1"]
[Round "05"]
[TimeControl "180+1"]
[Date "2022.03.16"]
[WhiteClock "0:00:06"]
[BlackClock "0:00:08"]

1. Nf3 {[%clk 0:03:00]}  c5 {[%clk 0:02:56]} 2. g3 {[%clk 0:03:00]}  g6 {[%clk 0:02:56]} 3. Bg2 {[%clk 0:03:00]}  Bg7 {[%clk 0:02:57]} 4. O-O {[%clk 0:03:01]}  Nc6 {[%clk 0:02:58]} 5. c3 {[%clk 0:03:01]}  e5 {[%clk 0:02:57]} 6. d4 {[%clk 0:03:02]}  cxd4 {[%clk 0:02:57]} 7. cxd4 {[%clk 0:03:03]}  e4 {[%clk 0:02:57]} 8. Ne5 {[%clk 0:03:03]}  d5 {[%clk 0:02:57]} 9. Nxc6 {[%clk 0:03:03]}  bxc6 {[%clk 0:02:57]} 10. Nc3 {[%clk 0:03:03]}  Qf6 {[%clk 0:02:58]} 11. Bf4 {[%clk 0:02:57]}  Qxd4 {[%clk 0:02:54]} 12. Qc2 {[%clk 0:02:53]}  Ne7 {[%clk 0:02:51]} 13. Bd6 {[%clk 0:02:46]}  Nf5 {[%clk 0:02:41]} 14. Ba3 {[%clk 0:02:42]}  Qe5 {[%clk 0:02:26]} 15. Nxd5 {[%clk 0:01:11]}  Nd4 {[%clk 0:02:05]} 16. Qa4 {[%clk 0:01:04]}  Qxd5 {[%clk 0:02:02]} 17. e3 {[%clk 0:00:58]}  Qb5 {[%clk 0:01:40]} 18. Qxb5 {[%clk 0:00:48]}  Nxb5 {[%clk 0:01:34]} 19. Bxe4 {[%clk 0:00:49]}  Bd7 {[%clk 0:01:04]} 20. Bc5 {[%clk 0:00:48]}  Bf8 {[%clk 0:00:59]} 21. Rac1 {[%clk 0:00:46]}  Bxc5 {[%clk 0:00:51]} 22. Rxc5 {[%clk 0:00:47]}  Rc8 {[%clk 0:00:51]} 23. Rd1 {[%clk 0:00:43]}  Ke7 {[%clk 0:00:47]} 24. a4 {[%clk 0:00:42]}  Nd6 {[%clk 0:00:45]} 25. Bf3 {[%clk 0:00:41]}  Rhd8 {[%clk 0:00:43]} 26. b4 {[%clk 0:00:37]}  Rb8 {[%clk 0:00:42]} 27. Bxc6 {[%clk 0:00:22]}  Bxc6 {[%clk 0:00:39]} 28. Rxc6 {[%clk 0:00:22]}  Rxb4 {[%clk 0:00:39]} 29. a5 {[%clk 0:00:20]}  Rb7 {[%clk 0:00:33]} 30. a6 {[%clk 0:00:20]}  Rbd7 {[%clk 0:00:33]} 31. Kg2 {[%clk 0:00:20]}  Nf5 {[%clk 0:00:31]} 32. Rb1 {[%clk 0:00:19]}  Rd6 {[%clk 0:00:31]} 33. Rb7+ {[%clk 0:00:18]}  R8d7 {[%clk 0:00:31]} 34. Rc8 {[%clk 0:00:14]}  Rxa6 {[%clk 0:00:28]} 35. Rcc7 {[%clk 0:00:11]}  Rxc7 {[%clk 0:00:25]} 36. Rxc7+ {[%clk 0:00:12]}  Ke6 {[%clk 0:00:25]} 37. g4 {[%clk 0:00:11]}  Nd6 {[%clk 0:00:25]} 38. h3 {[%clk 0:00:05]}  Ra1 {[%clk 0:00:25]} 39. f4 {[%clk 0:00:03]}  a5 {[%clk 0:00:25]} 40. Ra7 {[%clk 0:00:03]}  a4 {[%clk 0:00:25]} 41. Ra6 {[%clk 0:00:02]}  a3 {[%clk 0:00:25]} 42. e4 {[%clk 0:00:03]}  Ke7 {[%clk 0:00:23]} 43. Ra7+ {[%clk 0:00:02]}  Kf8 {[%clk 0:00:20]} 44. e5 {[%clk 0:00:02]}  Nb5 {[%clk 0:00:20]} 45. Ra8+ {[%clk 0:00:02]}  Ke7 {[%clk 0:00:19]} 46. f5 {[%clk 0:00:03]}  gxf5 {[%clk 0:00:19]} 47. gxf5 {[%clk 0:00:03]}  a2 {[%clk 0:00:19]} 48. Ra5 {[%clk 0:00:02]}  Nc3 {[%clk 0:00:17]} 49. Ra7+ {[%clk 0:00:02]}  Ke8 {[%clk 0:00:18]} 50. Ra8+ {[%clk 0:00:02]}  Kd7 {[%clk 0:00:18]} 51. Ra7+ {[%clk 0:00:02]}  Kc6 {[%clk 0:00:19]} 52. e6 {[%clk 0:00:02]}  fxe6 {[%clk 0:00:18]} 53. f6 {[%clk 0:00:03]}  Rd1 {[%clk 0:00:10]} 54. f7 {[%clk 0:00:03]}  Rd8 {[%clk 0:00:10]} 55. Ra3 {[%clk 0:00:03]}  Kb5 {[%clk 0:00:08]} 56. h4 {[%clk 0:00:01]}  Rf8 {[%clk 0:00:08]} 57. Ra7 {[%clk 0:00:01]}  Rxf7 {[%clk 0:00:08]} 58. Rxf7 {[%clk 0:00:01]}  a1=Q {[%clk 0:00:08]} 59. Rxh7 {[%clk 0:00:02]}  Qb2+ {[%clk 0:00:08]} 60. Kg3 {[%clk 0:00:03]}  Qc2 {[%clk 0:00:08]} 61. Rh5+ {[%clk 0:00:04]}  Kc6 {[%clk 0:00:08]} 62. Rg5 {[%clk 0:00:04]}  Ne4+ {[%clk 0:00:09]} 63. Kf4 {[%clk 0:00:04]}  Nxg5 {[%clk 0:00:10]} 64. Kxg5 {[%clk 0:00:03]}  Qf5+ {[%clk 0:00:10]} 65. Kh6 {[%clk 0:00:04]}  Qg4 {[%clk 0:00:10]} 66. h5 {[%clk 0:00:05]}  e5 {[%clk 0:00:11]} 67. Kh7 {[%clk 0:00:05]}  e4 {[%clk 0:00:11]} 68. h6 {[%clk 0:00:04]}  e3 {[%clk 0:00:12]} 69. Kh8 {[%clk 0:00:05]}  Qf5 {[%clk 0:00:08]} 70. h7 {[%clk 0:00:06]}  Qf8# {[%clk 0:00:08]} 0-1


[Site "https://www.chess.com"]